Cogmind - Beta 16 @@@ ROGUE MODE // 2026.01.10 @ 13:29:40 Player: leto Result: Destroyed by P-60 Hacker with Shock Rifle Performance ------------- Evolutions (0) 0 Regions Visited (3) 600 Robots Destroyed (13) 65 Value Destroyed (372) 372 Prototype IDs (9) 180 Alien Tech Used (0) 0 Bonus (300) 300 TOTAL SCORE: 1517 Bonus ------- Aligned with FarCom 300 Cogmind --------- Core Integrity 0/250 Matter 300/300 Energy 100/100 System Corruption 7% Temperature Cool (6) Movement Treading (480) Ox4 Location -10/Exiles Parts ------- > --- POWER (1) -------- (None) > --- PROPULSION (2) --- Light Treads > --- UTILITY (2) ------ Huge Storage Unit Subdweller Optics > --- WEAPON (2) ------- (None) > --- INVENTORY (25) --- Light Treads Wheel Wheel Wheel Flight Unit Flight Unit Flight Unit Flight Unit Flying Fortress v7 Structural Scanner Sensor Array Signal Interpreter Improved Terrain Scanner Improved Terrain Scanner Seismic Detector Seismic Detector Hacking Suite Mini Grenade Launcher Mining Claw Peak State ------------ > --- POWER ------------ Ion Engine > --- PROPULSION ------- Light Treads Light Treads > --- UTILITY ---------- Huge Storage Unit Subdweller Optics > --- WEAPON ----------- Datajack > --- INVENTORY -------- Light Treads Wheel Wheel Wheel Flight Unit Flight Unit Flight Unit Flight Unit Flying Fortress v7 Structural Scanner Sensor Array Signal Interpreter Improved Terrain Scanner Improved Terrain Scanner Seismic Detector Seismic Detector Hacking Suite Assault Rifle Mining Claw [Rating: 12] Favorites ----------- Power Ion Engine Engine Ion Engine Propulsion Light Treads Treads Light Treads Utility Huge Storage Unit Device Subdweller Optics Storage Huge Storage Unit Processor Visual Processing Unit Weapon Assault Rifle Energy Gun Particle Gun Ballistic Gun Assault Rifle Special Melee Weapon Datajack Build | -11 -10 -10 -10 ------- Run | Yrd Mat Min Exi Slots Evolved . | . . . . Power . | . . . . Propulsion . | . . . . Utility . | . . . . Weapon . | . . . . Parts Attached 16 | 7 8 . 1 Power 3 | 1 2 . . Engine 3 | 1 2 . . Core . | . . . . Reactor . | . . . . Propulsion 3 | 2 1 . . Treads 3 | 2 1 . . Leg . | . . . . Wheel . | . . . . Hover . | . . . . Flight . | . . . . Utility 5 | 1 4 . . Device 1 | . 1 . . Storage 3 | 1 2 . . Processor 1 | . 1 . . Hackware . | . . . . Protection . | . . . . Artifact . | . . . . Weapon 5 | 3 1 . 1 Energy Gun 2 | 1 1 . . Energy Cannon . | . . . . Ballistic Gun 2 | 2 . . . Ballistic Cannon . | . . . . Launcher . | . . . . Special Weapon . | . . . . Impact Weapon . | . . . . Slashing Weapon . | . . . . Piercing Weapon . | . . . . Special Melee Weapon 1 | . . . 1 Unidentified Prototypes . | . . . . Parts Lost 5 | . 1 . 4 Power 1 | . . . 1 Propulsion 1 | . . . 1 Utility . | . . . . Weapon 3 | . 1 . 2 Highest Loss Streak 4 | . 1 . 4 To Critical Strikes . | . . . . Average Backups 12 | 1 10 18 18 Power . | . . . . Propulsion 6 | 1 6 8 8 Utility 4 | . 3 8 8 Weapon . | . . 1 1 Tool/Special . | . . . . Unused Backups 17 | . . . 17 Power . | . . . . Propulsion 8 | . . . 8 Utility 8 | . . . 8 Weapon 1 | . . . 1 Tool/Special . | . . . . Average Slot Usage (%) 91 | . 94 85 83 Engine 13 | . 14 14 13 Treads 27 | . 27 28 27 Device 8 | . 6 14 14 Storage 14 | . 14 14 14 Processor 2 | . 2 . . Energy Gun 8 | . 11 . . Ballistic Gun 12 | . 16 14 . Special Melee Weapon 2 | . . . 13 Peak Build Rating 12 | 6 11 9 12 Average Rating 9 | 4 9 9 10 On Entrance 6 | . 6 9 9 Avg Prop Armor Cover (%) 15 | . . . 15 Naked Turns . | . . . . Heaviest Build 92 | 11 92 89 88 Greatest Support 40 | 40 40 40 40 Greatest Overweight (x) 29 | 2 2 2 29 Average Overweight (x) 1 | . 1 2 2 Largest Inventory Capacity 25 | 8 25 25 25 Average Capacity 24 | 7 24 25 25 Most Carried 22 | 3 19 18 22 Average Carried 12 | 1 10 18 19 Final Capacity 25 | 8 25 25 25 Final Carried 22 | 2 18 18 22 Class Distribution -------------------- 67% | Mutant 32% | Scavenger-Mutant Dominant Class ---------------- Mutant | -10/Materials Mutant | -10/Mines Mutant | -10/Exiles Resources | -11 -10 -10 -10 ----------- Run | Yrd Mat Min Exi Matter Collected 453 | 54 399 . . Remotely . | . . . . Salvage Created 460 | . 460 . . Parts 28 | . 28 . . Haulers Intercepted . | . . . . Recyclers Shooed . | . . . . Parts Field Recycled . | . . . . Retrieved Matter . | . . . . Parts Self-Destructed . | . . . . Prevented . | . . . . Parts Restored . | . . . . Kills | -11 -10 -10 -10 ------- Run | Yrd Mat Min Exi Combat Hostiles Destroyed 8 | . 8 . . Guns 8 | . 8 . . Classes Destroyed 5 | . 5 . . Worker 1 | . 1 . . Recycler 1 | . 1 . . Watcher 3 | . 3 . . Grunt 7 | . 7 . . Subdweller 1 | . 1 . . Best Kill Streak 4 | . 4 . . Combat Bots Only 3 | . 3 . . Max Kills in Single Turn 2 | . 2 . . Gunslinging . | . . . . Exploded . | . . . . Melee . | . . . . Uniques/NPCs Destroyed . | . . . . Combat | -11 -10 -10 -10 -------- Run | Yrd Mat Min Exi Hostile Shots Fired 122 | . 63 . 59 Missed 44 | . 23 . 21 Hits 78 | . 40 . 38 Projectile 78 | . 40 . 38 Part Disruptions 1 | . . . 1 Damage Taken 1093 | 1 550 . 542 Core 262 | . 102 . 160 Absorbed by Shields . | . . . . Regen/Repaired (Parts) 173 | . 173 . . Core Remaining (%) 100 | 100 . . . Volleys Fired 30 | . 30 . . Largest 2 | . 2 . . Hottest 85 | . 85 . . Shots Fired 56 | . 56 . . Gun 56 | . 56 . . Cannon . | . . . . Launcher . | . . . . Special . | . . . . Kinetic 37 | . 37 . . Thermal 19 | . 19 . . Explosive . | . . . . Electromagnetic . | . . . . Robot Hit Streak 8 | . 8 . . Robot Miss Streak 2 | . 2 . . Penetration Max . | . . . . Secondary Targets 1 | . 1 . . Max Gunslinging Chain 1 | . 1 . . Shots Hit Robots 40 | . 38 . 2 Core Hits 20 | . 20 . . Critical Kills . | . . . . Critical Parts Destroyed . | . . . . Critical Strikes . | . . . . Melee Attacks 2 | . . . 2 Impact . | . . . . Slashing . | . . . . Piercing . | . . . . Sneak Attacks 2 | . . . 2 Combat Hostiles . | . . . . Follow-up Attacks . | . . . . Damage Inflicted 577 | 2 575 . . Guns 542 | . 542 . . Cannons . | . . . . Explosions . | . . . . Melee . | . . . . Ramming 35 | 2 33 . . Kinetic 291 | . 291 . . Thermal 251 | . 251 . . Explosive . | . . . . Electromagnetic . | . . . . Impact . | . . . . Slashing . | . . . . Piercing . | . . . . Highest Corruption 7 | . . . 7 Average Corruption 2 | . . . 2 Corruption Purged . | . . . . Corruption Blocked . | . . . . Effects 1 | . . . 1 Energy Discharges 1 | . . . 1 Overload Shots . | . . . . Overflow Damage . | . . . . Projectiles . | . . . . Explosions . | . . . . Melee . | . . . . Knockbacks . | . . . . Impact . | . . . . Kinetic . | . . . . Secondary . | . . . . Self-Inflicted Damage 1 | 1 . . . Shots . | . . . . Rammed 7 | 1 6 . . Targets Rammed 8 | 1 7 . . Kicked . | . . . . Crushed 1 | . 1 . . Highest Temperature 171 | . 171 . . Average Temperature 56 | . 56 . . Received Heat Transfer 297 | . 255 . 42 Siege Activations . | . . . . Martial Activations . | . . . . Shielding Activations . | . . . . Robots Disrupted . | . . . . Combat Hostiles . | . . . . Robots Corrupted . | . . . . Combat Hostiles . | . . . . Parts Fried . | . . . . Impact Corruptions . | . . . . Robots Melted . | . . . . Combat Hostiles . | . . . . Parts Melted . | . . . . Heat Transferred 592 | . 592 . . Parts Sabotaged . | . . . . Parts Stolen . | . . . . Parts Stripped . | . . . . Power Chain Reactions . | . . . . Alert | -11 -10 -10 -10 ------- Run | Yrd Mat Min Exi Maximum Alert Level . | . . . . Low Security (%) 100 | 100 100 100 . Level 1 . | . . . . Level 2 . | . . . . Level 3 . | . . . . Level 4 . | . . . . Level 5 . | . . . . High Security . | . . . . Max Security . | . . . . Peak Influence 79 | . 79 . . Initial . | . . . . Average 8 | . 9 . . Influence Increases 268 | . 268 . . Destroy 0b10 Robot/C 140 | . 140 . . Destroy 0b10 Robot/NC 25 | . 25 . . Destroy Leader 46 | . 46 . . Successful Hack 41 | . 41 . . Destroy Structure 1 | . 1 . . Lose Combat Pursuer 15 | . 15 . . Influence Decreases 268 | . 268 . . Time Decay 254 | . 254 . . Purge Threat 14 | . 14 . . Squads Dispatched 3 | . 3 . . Investigation 3 | . 3 . . Extermination . | . . . . Reinforcement . | . . . . Assault . | . . . . Garrison . | . . . . Intercept . | . . . . Searches Triggered . | . . . . Construction Impeded . | . . . . Haulers Reinforced . | . . . . Active Scanning Responses . | . . . . Cargo Convoy Interrupts . | . . . . Stealth | -11 -10 -10 -10 --------- Run | Yrd Mat Min Exi Distress Signals 1 | . 1 . . Communications Jammed . | . . . . Distress Signals . | . . . . Times Spotted 35 | . 22 . 13 Peak Tracking Total 7 | . 3 . 7 Tactical Retreats 2 | . 2 . . Traps | -11 -10 -10 -10 ------- Run | Yrd Mat Min Exi Traps Triggered . | . . . . Indirectly . | . . . . Trap Hack Attempts . | . . . . Triggered . | . . . . Disarmed . | . . . . Reprogrammed . | . . . . Reused . | . . . . Traps Extracted . | . . . . Installed . | . . . . Triggered . | . . . . Machines | -11 -10 -10 -10 ---------- Run | Yrd Mat Min Exi Machines Disabled . | . . . . Max in Single Turn . | . . . . Machines Repaired . | . . . . Machines Dismantled . | . . . . Machines Sabotaged . | . . . . Overloaded Fab Kills . | . . . . Hacking | -11 -10 -10 -10 --------- Run | Yrd Mat Min Exi Machines Accessed 9 | . 8 . 1 Terminals 7 | . 7 . . Fabricators . | . . . . Repair Stations 1 | . 1 . . Recycling Units . | . . . . Scanalyzers . | . . . . Garrison Access . | . . . . Total Hacks 37 | . 36 . 1 Successful 21 | . 20 . 1 Failed 16 | . 16 . . Catastrophic 2 | . 2 . . Database Lockouts . | . . . . Manual 23 | . 22 . 1 Terminals 28 | . 28 . . Fabricators . | . . . . Repair Stations 8 | . 8 . . Recycling Units . | . . . . Scanalyzers . | . . . . Garrison Access . | . . . . Terminal Hacks 7 | . 6 . 1 Record 1 | . . . 1 Robot Analysis 1 | . 1 . . Branch Access Points 1 | . 1 . . Terminal Index 1 | . 1 . . Scanalyzer Index 1 | . 1 . . Unreport Threat 1 | . 1 . . Locate Traps 1 | . 1 . . Fabricator Hacks . | . . . . Repair Station Hacks 6 | . 6 . . Scan Component 3 | . 3 . . Repair 3 | . 3 . . Recycling Unit Hacks . | . . . . Scanalyzer . | . . . . Garrison Access Hacks . | . . . . Unauthorized Hacks 8 | . 8 . . Terminals 8 | . 8 . . Botnet 7 | . 7 . . Operators 1 | . 1 . . Fabricators . | . . . . Repair Stations . | . . . . Recycling Units . | . . . . Scanalyzers . | . . . . Garrison Access . | . . . . Data Cores Recovered . | . . . . Used . | . . . . Hacking Detections 6 | . 6 . . Full Trace Events 3 | . 3 . . Feedback Events . | . . . . Feedback Blocked . | . . . . Robot Schematics Acquired . | . . . . Robots Built . | . . . . Authchips . | . . . . Time . | . . . . Total Robot Build Rating . | . . . . Part Schematics Acquired . | . . . . Parts Built . | . . . . Authchips . | . . . . Time . | . . . . Total Part Build Rating . | . . . . Part Studies Acquired . | . . . . Parts Repaired 3 | . 3 . . Time 96 | . 96 . . Parts Recycled . | . . . . Recycled Matter . | . . . . Retrieved Matter . | . . . . Retrieved Components . | . . . . Parts Scanalyzed . | . . . . Part Schematics Acquired . | . . . . Parts Damaged . | . . . . Bothacking | -11 -10 -10 -10 ------------ Run | Yrd Mat Min Exi Used RIF Installer . | . . . . Robots Hacked 2 | . . . 2 Non-combat 1 | . . . 1 Combat 1 | . . . 1 Robot Hacks Applied 2 | . . . 2 parse_system 2 | . . . 2 Relay Couplers Released . | . . . . Fabnet Peak Effective % . | . . . . Robots Rewired . | . . . . Allies Hacked . | . . . . Hacks Repelled . | . . . . Allies | -11 -10 -10 -10 -------- Run | Yrd Mat Min Exi Total Allies . | . . . . Largest Group . | . . . . Highest-Rated Group . | . . . . Highest-Rated Ally . | . . . . Total Orders . | . . . . Ally Attacks . | . . . . Total Damage . | . . . . Kills . | . . . . Allies Corrupted . | . . . . Allies Melted . | . . . . Intel | -11 -10 -10 -10 ------- Run | Yrd Mat Min Exi Active Infowar (turns) 1909 | . 1405 151 353 Optics 1909 | . 1405 151 353 Robot Analysis Total 1 | . 1 . . Derelict Logs Recovered 1 | . . 1 . Drone Launches . | . . . . Drone Recoveries . | . . . . Exploration | -11 -10 -10 -10 ------------- Run | Yrd Mat Min Exi Turns Passed 3359 | 51 2472 151 685 Spaces Moved 962 | 27 694 48 193 Core 10 | 9 . . 1 Treads 952 | 18 694 48 192 Legs . | . . . . Wheels . | . . . . Hover . | . . . . Flight . | . . . . Fastest Speed 50 | 50 160 320 320 Average Speed 309 | 134 309 320 328 Slowest Speed 1500 | 160 320 320 1500 Overloaded Moves . | . . . . Propulsion Burnouts . | . . . . Robots Hopped . | . . . . Potential Cave-ins . | . . . . Cave-ins Triggered . | . . . . Exploration Rate (%) 43 | 4 98 18 55 Regions Visited 3 Branch Regions 2 Pre-discovered Areas 1 | . . . 1 Known Exits Taken 1 | . 1 . . Unknown Exits Taken 2 | 1 . 1 . Scrap Searched . | . . . . Spaces Dug . | . . . . Terrain Destroyed . | . . . . Melee . | . . . . Projectile . | . . . . AOE . | . . . . Terrain Rammed . | . . . . Walls Destroyed . | . . . . Machines Disabled . | . . . . Actions | -11 -10 -10 -10 --------- Run | Yrd Mat Min Exi Total 1275 | 38 945 47 245 Wait 227 | . 182 . 45 Move 959 | 26 693 47 193 Hop . | . . . . Pick Up 22 | 2 18 . 2 Fast Attach 10 | 6 4 . . Attach 3 | . 1 . 2 Detach 1 | . . . 1 Swap 7 | 2 5 . . Drop 6 | 1 5 . . Fire 30 | . 30 . . Melee 2 | . . . 2 Ram 1 | 1 . . . Kick . | . . . . Crush 7 | . 7 . . Escape Stasis . | . . . . Rewire . | . . . . Trap . | . . . . Miscellaneous . | . . . . Route ------- -11/Scrapyard -10/Materials (discovered 6 exits: [*Mat x3] / *Min x2 / [*Sub]) -10/Mines -10/Exiles (discovered 1 exit: [*Min]) History --------- Turn | Location | Event 18 | -11/Scrapyard | Discovered new exit (range 16) 52 | -11/Scrapyard | Entered Materials 300 | -10/Materials | Build established: Mutant 545 | -10/Materials | Discovered new exit (range 16) 863 | -10/Materials | Discovered new exit (range 17) 997 | -10/Materials | Discovered new exit (range 13) 1052 | -10/Materials | Derelicts attacked the area 1384 | -10/Materials | Discovered new exit (range 6) 1518 | -10/Materials | Identified exit to Mines 1637 | -10/Materials | Discovered new exit (range 21) 1681 | -10/Materials | Build established: Scavenger-Mutant 2061 | -10/Materials | Repaired Lgt. Treads 2157 | -10/Materials | Repaired Lgt. Treads 2270 | -10/Materials | Discovered new exit (range 8) 2483 | -10/Materials | Repaired Broken Sub. Optics 2524 | -10/Materials | Entered Mines 2544 | -10/Mines | Learned Materials non-interactive machine intel 2659 | -10/Mines | Deemed a non-threat by the Exiles lab entrance 2662 | -10/Mines | Discovered new exit (range 5) 2675 | -10/Mines | Entered Exiles 2719 | -10/Exiles | Discovered new exit (range 16) 2757 | -10/Exiles | Met 8R-AWN 2811 | -10/Exiles | Build established: Mutant 2816 | -10/Exiles | Met EX-HEX 2917 | -10/Exiles | Met EX-BIN 2952 | -10/Exiles | Aligned with FarCom system 2955 | -10/Exiles | Given EX-Vault access code 3032 | -10/Exiles | Opened EX-Vault 3054 | -10/Exiles | Found Prototype Flight Unit 3119 | -10/Exiles | Warned to stay clear of 0b10 Research branches 3162 | -10/Exiles | Exiles lab attacked by MAIN.C 3235 | -10/Exiles | Learned location of Zion (-7) 3337 | -10/Exiles | Core integrity fell below 50% 3357 | -10/Exiles | Core integrity fell below 20% 3360 | -10/Exiles | Destroyed by P-60 Hacker with Shock Rifle Last Messages --------------- it. World map updated: -7/Zion. 8R-AWN: "I have a feeling things are about to get a lot worse here, go go go take the back way out!" Slug penetrates DAS Turret. D-53 Grenadier destroyed. G-34 Mercenary suffers critical hit (Blast). G-34 Mercenary destroyed. Assault Rifle destroyed. Datajack destroyed. G-34 Mercenary destroyed. Ion Engine destroyed. System corrupted: Energy discharge (-24). DAS Turret system terminally corrupted. Lgt. Treads destroyed. Acquired Mni. Grenade Launcher. G-34 Mercenary destroyed. P-60 Hacker resets P-60 Hacker, system corruption cleaned. Map ----- +----------------------------------------------------+ | ??????????????????????????????##"###??# #?#""" | | ?????????????????????????????? ??????# #?#""" | | ?????????????????????????????""???????# #?#""" | | ????????????????????????????#????????## ###"" | | ?????????????????????????????????????#" | | ?????????????????????????????????????#" | | ?????????????????????????????????????#" | | ?????????????????????????????????????#" | | ?????????????????????????#???????????#" | | ???????????????????????? """????????#" | | ????????????????????????" """#???????## | | ????????????????????????" #????????# | | ???????????????????????"" #????????#" "X" | | ???? ???????????????"" "#????????#" """ | | ???? ??????????????? ""?????????#" """"" | | ???? #?????????????" "?????????##" ###### | | ????? ????????????# #????????##"" #????? | | ??????"" ######???### ###?######"" #????? | | ??????#" """#####X# #"###""""""" ##???? | | ??????#" """""" " "" ##??? | | ????????# "" """ " #### | | ?????????# " " | | ?????????### | | ???????????### %= | | ?????????????## ! | | ??????????????## @ % p % h | | ???????????????## gg%% g | | ????????????????#"" % % p """""" | | ????????????????# ! ######""" | | ??????????????# ""##????#####""" | | ?????????????# """##?????????##""" | | ?????????????# p"""##???????????#"""" | | ?????????????## % ""#????????????#"" | | ?????????????# % ##???????????#"""" | | ?????????????## %!???????????" | | ??????????????# % !%????????? | | ??????????????##"" g *%??????? | | ???????????????#"""" %% ??????? | | ????????????????? !??????? | | ??????????????????? ???????? "" | | ???????????????????"" ?????????? ##""" " | | ????????????????????? ??????????? ???####"" | | ???????????????????????????????????????????????### | | ?????????????????????????????????????????????????# | | ?????????????????????????????????????????????????? | | ?????????????????????????????????????????????????? | | ?????????????????????????????????????????????????? | | ?????????????????????????????????????????????????? | | ?????????????????????????????????????????????????? | | ?????????????????????????????????????????????????? | +----------------------------------------------------+ Best States ------------- Heat Dissipation 25 Energy Generation 10 Energy Capacity 250 Matter Stores 300 Matter Capacity 300 Sight Range 21 Terrain Scan Density 10 Evasion (%) 40 Recoil Reduction 2 Item Schematics ----------------- None Robot Schematics ------------------ None Fabricated ------------ Nothing Repaired ---------- Lgt. Treads | 58% | -10/Materials Lgt. Treads | 19% | -10/Materials Sub. Optics | 95% | -10/Materials | Broken Studied --------- None Alien Tech Used ----------------- None Achievements -------------- None Challenges ------------ None Game ------ Seed ShockboltStorageRipteeth Manual? 0 Play Time 00:12:01 Cumulative 14.1 hours Start 2026.01.10 @ 13:12:20 End 2026.01.10 @ 13:29:40 Sessions 1 Manual Loads 0 Difficulty Rogue Special Mode None Game No. 19 Rogue 19 Adventurer 0 Explorer 0 Win Type - Total 0 Types 0/0/0/0/0/0/0/0/0/0 Lore% 9 Gallery% 21 Achievement% 23 Wizard Run 0 Options --------- Layout 1 ASCII 0 Keyboard 1 Movement Vi Keybinds 0 Fullscreen 1 Font 24/Smallcaps Map View 50x35 Zoom Use 0% Tactical HUD 0 Map Filters NONE Filters NONE Steam 1 RUN: a7c4304d-ae13-49ab-baf5-d5e57fd17f5e